[Event "GCT Paris Rapid 2021"]
[Site "Paris"]
[Date "2021.06.20"]
[Round "9.3"]
[White "Nepomniachtchi, Ian"]
[Black "Radjabov, Teimour"]
[Result "1-0"]
[ECO "C67"]
[WhiteElo "2792"]
[BlackElo "2765"]
[Annotator "RC"]
[PlyCount "181"]
[EventDate "2021.06.18"]
[EventType "tourn"]
[EventCountry "FRA"]
[SourceTitle "playchess.com"]
[Source "ChessBase"]
[SourceQuality "1"]
[TimeControl "1500+10"]

1. e4 {[%emt 0:00:03]} e5 {[%emt 0:00:00]} 2. Nf3 {[%emt 0:00:01]} Nc6 {
[%emt 0:00:01]} 3. Bb5 {[%emt 0:00:02]} Nf6 {[%emt 0:00:01]} 4. O-O {[%emt 0:
00:02]} Nxe4 {[%emt 0:00:02]} 5. d4 {[%emt 0:00:01]} Nd6 {[%emt 0:00:01]} 6.
Ba4 {[%emt 0:00:02]} exd4 {[%emt 0:00:28]} 7. c3 {[%emt 0:00:02]} Be7 {[%emt 0:
01:12]} 8. cxd4 {[%emt 0:00:06]} b5 {[%emt 0:00:01]} 9. Bb3 {[%emt 0:00:05]}
O-O {[%emt 0:00:30]} 10. Nc3 {[%emt 0:00:02]} Bb7 {[%emt 0:00:34]} 11. Re1 {
[%emt 0:00:08]} Bf6 {[%emt 0:01:32]} 12. Bf4 {[%emt 0:00:06]} Na5 {[%emt 0:00:
56]} 13. Bc2 {[%emt 0:01:34]} b4 {[%emt 0:01:00]} 14. Na4 {[%emt 0:00:18]} g6 {
[%emt 0:03:41]} 15. Ne5 {[%emt 0:00:09]} Nb5 {[%emt 0:04:33]} 16. Nc5 {[%emt 0:
00:32]} d6 {[%emt 0:00:49]} 17. Nxb7 {[%emt 0:01:11]} Nxb7 {[%emt 0:00:01]} 18.
Nc6 {[%emt 0:01:46]} Qd7 {[%emt 0:00:02]} 19. Nxb4 {[%emt 0:01:43]} Nxd4 {
[%emt 0:02:33]} 20. Nd5 {[%emt 0:00:16]} Bg7 {[%emt 0:00:02]} 21. Re7 {[%emt 0:
00:27]} Qd8 {[%emt 0:00:21]} 22. Bg5 {[%emt 0:03:12]} Kh8 {[%emt 0:05:12]} 23.
Bxg6 {[%emt 0:05:46]} fxg6 {[%emt 0:00:04]} 24. h4 {[%emt 0:00:13]} Qxe7 {
[%emt 0:04:35]} 25. Nxe7 {[%emt 0:02:15]} Rae8 {[%emt 0:00:01]} 26. Be3 {
[%emt 0:02:56]} c5 {[%emt 0:00:01]} 27. Nd5 {[%emt 0:00:14]} Re5 {[%emt 0:00:
31]} 28. Nc3 {[%emt 0:00:55]} Nd8 {[%emt 0:00:08]} 29. Qd2 {[%emt 0:00:52]}
N8e6 {[%emt 0:00:26]} 30. Bh6 {[%emt 0:00:42]} Bxh6 {[%emt 0:00:25]} 31. Qxh6 {
[%emt 0:00:01]} Rf4 {[%emt 0:00:02]} 32. g3 {[%emt 0:00:07]} Rf7 {[%emt 0:00:
32]} 33. Qc1 {[%emt 0:00:37]} Ref5 {[%emt 0:00:11]} 34. f4 {[%emt 0:00:44]} h6
{[%emt 0:00:06]} 35. Qd1 {[%emt 0:00:24]} g5 {[%emt 0:00:07]} 36. hxg5 {
[%emt 0:00:31]} hxg5 {[%emt 0:00:01]} 37. Ne4 {[%emt 0:00:01]} Rh7 {[%emt 0:00:
16]} 38. Nxd6 {[%emt 0:00:47]} Rf6 {[%emt 0:00:00]} 39. f5 {[%emt 0:00:26]}
Rfh6 {[%emt 0:00:10]} 40. Kf2 {[%emt 0:00:51]} Rh2+ {[%emt 0:00:18]} 41. Ke3 {
[%emt 0:00:01]} Nc2+ {[%emt 0:00:18]} 42. Ke4 {[%emt 0:00:04]} Ned4 {[%emt 0:
00:08]} 43. f6 {[%emt 0:00:31]} Re2+ {[%emt 0:00:15]} 44. Kd3 {[%emt 0:00:19]}
Nxa1 {[%emt 0:00:11]} 45. Qxa1 {[%emt 0:00:29]} Re6 {[%emt 0:00:09]} 46. Ne4 {
[%emt 0:00:26]} Nf5 {[%emt 0:00:10]} 47. Qc1 {[%emt 0:00:27]} Rd7+ {[%emt 0:00:
04]} 48. Kc3 {[%emt 0:00:00]} Nd6 {[%emt 0:00:15]} 49. Qh1+ {[%emt 0:00:22]}
Kg8 {[%emt 0:00:04]} 50. Nxg5 {[%emt 0:00:07]} Rxf6 {[%emt 0:00:05]} 51. Qd5+ {
[%emt 0:00:03]} Kf8 {[%emt 0:00:13]} 52. Qe5 {[%emt 0:00:15]} Ne8 {[%emt 0:00:
21]} 53. Ne6+ {[%emt 0:00:11]} Kf7 {[%emt 0:00:01]} 54. Nxc5 {[%emt 0:00:04]}
Re7 {[%emt 0:00:04]} 55. Qd5+ {[%emt 0:00:04]} Kg7 {[%emt 0:00:07]} 56. Qg5+ {
[%emt 0:00:08]} Kf7 {[%emt 0:00:04]} 57. Qd5+ {[%emt 0:00:11]} Kg7 {[%emt 0:00:
01]} 58. b3 {[%emt 0:00:07]} Nd6 {[%emt 0:00:09]} 59. Kb4 {[%emt 0:00:04]} Nf7
{[%emt 0:00:14]} 60. Ka3 {[%emt 0:00:11]} Rd6 {[%emt 0:00:15]} 61. Qc4 {
[%emt 0:00:09]} Rg6 {[%emt 0:00:09]} 62. Qd4+ {[%emt 0:00:04]} Kg8 {[%emt 0:00:
16]} 63. Ne4 {[%emt 0:00:11]} Ree6 {[%emt 0:00:02]} 64. g4 {[%emt 0:00:08]} Kh7
{[%emt 0:00:36]} 65. Kb2 {[%emt 0:00:29]} Rb6 {[%emt 0:00:11]} 66. Qd7 {
[%emt 0:00:08]} Kg7 {[%emt 0:00:09]} 67. Qxa7 {[%emt 0:00:04]} Rge6 {[%emt 0:
00:08]} 68. Ng5 {[%emt 0:00:36]} Re2+ {[%emt 0:00:01]} 69. Ka3 {[%emt 0:00:02]}
Rf6 {[%emt 0:00:05]} 70. Nxf7 {[%emt 0:00:02]} Rxf7 {[%emt 0:00:01]} 71. Qd4+ {
[%emt 0:00:01]} Kg8 {[%emt 0:00:10]} 72. Qc4 {[%emt 0:00:22]} Re5 {[%emt 0:00:
10]} 73. b4 {[%emt 0:00:09]} Kg7 {[%emt 0:00:17]} 74. Qd4 {[%emt 0:00:02]} Rfe7
{[%emt 0:00:01]} 75. Kb3 {[%emt 0:00:12]} Kg6 {[%emt 0:00:01]} 76. a3 {[%emt 0:
00:12]} Kg5 {[%emt 0:00:03]} 77. Ka4 {[%emt 0:00:15]} Re4 {[%emt 0:00:06]} 78.
Qb6 {[%emt 0:00:08]} R4e6 {[%emt 0:00:14]} 79. Qf2 {[%emt 0:00:10]} Kxg4 {
[%emt 0:00:08]} 80. b5 {[%emt 0:00:07]} Re3 {[%emt 0:00:06]} 81. Qg1+ {[%emt 0:
00:22]} Kf4 {[%emt 0:00:19]} 82. Qh2+ {[%emt 0:00:07]} Kf5 {[%emt 0:00:08]} 83.
Qh5+ {[%emt 0:00:06]} Kf4 {[%emt 0:00:02]} 84. Qc5 {[%emt 0:00:04]} R7e5 {
[%emt 0:00:18]} 85. Qf8+ {[%emt 0:00:05]} Ke4 {[%emt 0:00:45]} 86. Ka5 {
[%emt 0:00:02]} Rf3 {[%emt 0:00:06]} 87. Qb4+ {[%emt 0:00:03]} Kf5 {[%emt 0:00:
12]} 88. a4 {[%emt 0:00:04]} Rfe3 {[%emt 0:00:14]} 89. Ka6 {[%emt 0:00:08]} Re8
{[%emt 0:00:03]} 90. b6 {[%emt 0:00:07]} R3e4 {[%emt 0:00:07]} 91. Qb5+ {
[%emt 0:00:08]} 1-0